fUSD/lending_fUSD_20250630
["ID","MTS","AMOUNT","RATE_DAILY","PERIOD"]
[368656803,1751267494673,-150.481,0.00017425,2]
[368656804,1751267494683,-193.946,0.00017425,2]
[368656805,1751267494692,-180.388,0.00017425,2]
[368656806,1751267494701,-236.465,0.00017425,2]
[368656807,1751267494710,-150.0,0.00017425,2]
[368656808,1751267494720,-150.0,0.00017425,2]
[368656809,1751267494729,-150.596,0.00017425,2]
[368656810,1751267494738,-3341.0,0.00017425,2]
[368656811,1751267494748,-167.47,0.00017435,2]
[368656812,1751267494757,-1000.0,0.00017521,2]
[368656813,1751267494767,-500.52965973,0.00017521,2]
[368656814,1751267494776,-1000.0,0.00017521,2]
[368656815,1751267494785,-1000.0,0.00017521,2]
[368656816,1751267494794,-359.67647129,0.00017534,2]
[368656817,1751267494804,-490.0,0.00017534,2]
[368656818,1751267494814,-693.03,0.00017534,2]
[368656819,1751267494823,-805.3,0.00017534,2]
[368656820,1751267494832,-490.0,0.00017534,2]
[368656821,1751267494842,-490.0,0.00017534,2]
[368656822,1751267494851,-490.0,0.00017534,2]
[368656823,1751267494860,-490.0,0.00017534,2]
[368656824,1751267494870,-575.94,0.00017534,2]
[368656825,1751267494879,-679.11,0.00017534,2]
[368656826,1751267494889,-490.0,0.00017534,2]
[368656827,1751267494899,-490.0,0.00017534,2]
[368656828,1751267494909,-490.0,0.00017534,2]
[368656829,1751267494919,-493.2493657,0.00017534,2]
[368656830,1751267494929,-176.23550292,0.00017534,2]
[368656831,1751267494940,-490.0,0.00017534,2]
[368656832,1751267494950,-490.0,0.00017534,2]
[368656833,1751267494959,-1455.98,0.00017534,2]
[368656834,1751267494969,-490.0,0.00017534,2]
[368656835,1751267494979,-226.75391579,0.00017534,2]
[368656836,1751267494989,-490.0,0.00017534,2]
[368656837,1751267494998,-490.0,0.00017534,2]
[368656838,1751267495008,-490.0,0.00017534,2]
[368656839,1751267495017,-490.0,0.00017534,2]
[368656840,1751267495027,-404.30095753,0.00017534,2]
[368656841,1751267495036,-617.1,0.00017534,2]
[368656842,1751267495046,-646.83,0.00017534,2]
[368656843,1751267495056,-619.88,0.00017534,2]
[368656844,1751267495065,-730.27,0.00017534,2]
[368656845,1751267495076,-1000.0,0.00017534,2]
[368656846,1751267495085,-490.0,0.00017534,2]
[368656847,1751267495098,-664.14,0.00017534,2]
[368656848,1751267495108,-224.84281219,0.00017534,2]
[368656849,1751267495120,-490.0,0.00017534,2]
[368656850,1751267495131,-773.24,0.00017534,2]
[368656851,1751267495142,-758.88,0.00017534,2]
[368656852,1751267495152,-490.0,0.00017534,2]
[368656853,1751267495161,-490.0,0.00017534,2]
[368656854,1751267495174,-490.0,0.00017534,2]
[368656855,1751267495183,-577.72,0.00017534,2]
[368656856,1751267495193,-601.5,0.00017534,2]
[368656857,1751267495202,-490.0,0.00017534,2]
[368656858,1751267495212,-490.0,0.00017534,2]
[368656859,1751267495221,-490.0,0.00017534,2]
[368656860,1751267495231,-630.94648047,0.00017534,2]
[368656861,1751267495240,-816.0,0.00017534,2]
[368656862,1751267495249,-490.0,0.00017534,2]
[368656863,1751267495259,-490.0,0.00017534,2]
[368656864,1751267495268,-490.0,0.00017534,2]
[368656865,1751267495277,-667.45,0.00017534,2]
[368656866,1751267495286,-490.0,0.00017534,2]
[368656867,1751267495295,-490.0,0.00017534,2]
[368656868,1751267495305,-617.89,0.00017534,2]
[368656869,1751267495315,-490.0,0.00017534,2]
[368656870,1751267495324,-546.3,0.00017534,2]
[368656871,1751267495334,-490.0,0.00017534,2]
[368656872,1751267495343,-490.0,0.00017534,2]
[368656873,1751267495353,-546.57,0.00017534,2]
[368656874,1751267495362,-490.0,0.00017534,2]
[368656875,1751267495371,-491.07,0.00017534,2]
[368656876,1751267495381,-376.08708657,0.00017534,2]
[368656877,1751267495391,-558.91,0.00017534,2]
[368656878,1751267495401,-509.37,0.00017534,2]
[368656879,1751267495410,-1109.19,0.00017534,2]
[368656880,1751267495420,-490.0,0.00017534,2]
[368656881,1751267495429,-490.0,0.00017534,2]
[368656882,1751267495440,-597.0,0.00017534,2]
[368656883,1751267495450,-1051.89,0.00017534,2]
[368656884,1751267495459,-490.0,0.00017534,2]
[368656885,1751267495469,-652.06,0.00017534,2]
[368656886,1751267495479,-490.0,0.00017534,2]
[368656887,1751267495489,-490.0,0.00017534,2]
[368656888,1751267495499,-555.62,0.00017534,2]
[368656889,1751267495509,-834.47,0.00017534,2]
[368656890,1751267495518,-490.0,0.00017534,2]
[368656891,1751267495528,-505.76,0.00017534,2]
[368656892,1751267495537,-1024.79,0.00017534,2]
[368656893,1751267495546,-565.42217768,0.00017534,2]
[368656894,1751267495555,-1569.41,0.00017534,2]
[368656895,1751267495564,-490.0,0.00017534,2]
[368656896,1751267495574,-710.77,0.00017534,2]
[368656897,1751267495584,-176.37515622,0.00017534,2]
[368656898,1751267495593,-626.94,0.00017534,2]
[368656899,1751267495603,-1368.28,0.00017534,2]
[368656900,1751267495612,-490.0,0.00017534,2]
[368656901,1751267495621,-167.98694177,0.00017534,2]
[368656902,1751267495630,-700.82,0.00017534,2]
[368656903,1751267495640,-490.0,0.00017534,2]
[368656904,1751267495650,-490.0,0.00017534,2]
[368656905,1751267495659,-490.0,0.00017534,2]
[368656906,1751267495669,-490.0,0.00017534,2]
[368656907,1751267495678,-591.74,0.00017534,2]
[368656908,1751267495688,-1000.0,0.00017534,2]
[368656909,1751267495697,-516.33,0.00017534,2]
[368656910,1751267495707,-490.0,0.00017534,2]
[368656911,1751267495716,-490.0,0.00017534,2]
[368656912,1751267495725,-490.0,0.00017534,2]
[368656913,1751267495735,-721.33,0.00017534,2]
[368656914,1751267495744,-490.0,0.00017534,2]
[368656915,1751267495754,-490.0,0.00017534,2]
[368656916,1751267495764,-490.0,0.00017534,2]
[368656917,1751267495774,-2445.31,0.00017534,2]
[368656918,1751267495783,-925.92,0.00017534,2]
[368656919,1751267495793,-490.0,0.00017534,2]
[368656920,1751267495802,-490.0,0.00017534,2]
[368656921,1751267495812,-490.0,0.00017534,2]
[368656922,1751267495822,-490.0,0.00017534,2]
[368656923,1751267495833,-1062.7,0.00017534,2]
[368656924,1751267495844,-600.23,0.00017534,2]
[368656925,1751267495854,-490.0,0.00017534,2]
[368656926,1751267495864,-490.0,0.00017534,2]
[368656927,1751267495873,-575.86,0.00017534,2]
[368656928,1751267495883,-455.96724249,0.00017534,2]
[368656929,1751267495892,-576.25,0.00017534,2]
[368656930,1751267495902,-490.0,0.00017534,2]
[368656931,1751267495912,-1391.24,0.00017534,2]
[368656932,1751267495922,-523.77,0.00017534,2]
[368656933,1751267495931,-391.00660401,0.00017534,2]
[368656934,1751267495941,-638.22,0.00017534,2]
[368656935,1751267495952,-490.0,0.00017534,2]
[368656936,1751267495963,-1035.49,0.00017534,2]
[368656937,1751267495974,-490.0,0.00017534,2]
[368656938,1751267495984,-490.0,0.00017534,2]
[368656939,1751267495993,-986.61,0.00017534,2]
[368656940,1751267496003,-490.0,0.00017534,2]
[368656941,1751267496013,-490.0,0.00017534,2]
[368656942,1751267496022,-605.08,0.00017534,2]
[368656943,1751267496032,-1639.57,0.00017534,2]
[368656944,1751267496041,-490.0,0.00017534,2]
[368656945,1751267496051,-1328.29,0.00017534,2]
[368656946,1751267496062,-490.0,0.00017534,2]
[368656947,1751267496072,-800.83,0.00017534,2]
[368656948,1751267496082,-971.97,0.00017534,2]
[368656949,1751267496095,-623.84,0.00017534,2]
[368656950,1751267496104,-940.14,0.00017534,2]
[368656951,1751267496115,-490.0,0.00017534,2]
[368656952,1751267496125,-4046.604477,0.00017534,2]
[368656953,1751267496135,-490.0,0.00017534,2]
[368656954,1751267496144,-490.0,0.00017534,2]
[368656955,1751267496153,-490.0,0.00017534,2]
[368656956,1751267496164,-490.0,0.00017534,2]
[368656957,1751267496174,-490.0,0.00017534,2]
[368656958,1751267496184,-534.43,0.00017534,2]
[368656959,1751267496194,-627.73,0.00017534,2]
[368656960,1751267496204,-490.0,0.00017534,2]
[368656961,1751267496214,-249.46809336,0.00017534,2]
[368656962,1751267496223,-490.0,0.00017534,2]
[368656963,1751267496233,-1749.67,0.00017534,2]
[368656964,1751267496243,-4363.921726,0.00017534,2]
[368656965,1751267496253,-490.0,0.00017534,2]
[368656966,1751267496263,-490.0,0.00017534,2]
[368656967,1751267496272,-835.69,0.00017534,2]
[368656968,1751267496281,-490.0,0.00017534,2]
[368656969,1751267496292,-490.0,0.00017534,2]
[368656970,1751267496301,-536.25,0.00017534,2]
[368656971,1751267496311,-519.63,0.00017534,2]
[368656972,1751267496321,-3818.829397,0.00017534,2]
[368656973,1751267496330,-157.608669,0.00017534,2]
[368656974,1751267496340,-490.0,0.00017534,2]
[368656975,1751267496349,-1380.98,0.00017534,2]
[368656976,1751267496359,-1129.16,0.00017534,2]
[368656977,1751267496368,-1252.21,0.00017534,2]
[368656978,1751267496377,-154.8076,0.00017534,2]
[368656979,1751267496387,-490.0,0.00017534,2]
[368656980,1751267496396,-775.3,0.00017534,2]
[368656981,1751267496406,-505.86513,0.00017534,2]
[368656982,1751267496416,-613.46,0.00017534,2]
[368656983,1751267496426,-581.66,0.00017534,2]
[368656984,1751267496436,-490.0,0.00017534,2]
[368656985,1751267496446,-490.0,0.00017534,2]
[368656986,1751267496455,-1521.23,0.00017534,2]
[368656987,1751267496465,-280.23232483,0.00017534,2]
[368656988,1751267496474,-490.0,0.00017534,2]
[368656989,1751267496485,-501.16,0.00017534,2]
[368656990,1751267496495,-586.801767,0.00017534,2]
[368656991,1751267496506,-490.0,0.00017534,2]
[368656992,1751267496515,-961.22,0.00017534,2]
[368656993,1751267496524,-490.0,0.00017534,2]
[368656994,1751267496534,-2465.21,0.00017534,2]
[368656995,1751267496543,-627.46,0.00017534,2]
[368656996,1751267496553,-1327.29,0.00017534,2]
[368656997,1751267496563,-500.18456399,0.00017534,2]
[368656998,1751267496574,-660.31,0.00017534,2]
[368656999,1751267496583,-182.01276122,0.00017534,2]
[368657000,1751267496594,-1100.19,0.00017534,2]
[368657001,1751267496603,-490.0,0.00017534,2]
[368657002,1751267496613,-490.0,0.00017534,2]
[368657003,1751267496716,-688.07,0.00017534,2]
[368657004,1751267496726,-541.62,0.00017534,2]
[368657005,1751267496736,-1826.2,0.00017534,2]
[368657006,1751267496745,-1485.67,0.00017534,2]
[368657007,1751267496754,-490.0,0.00017534,2]
[368657008,1751267496764,-490.0,0.00017534,2]
[368657009,1751267496773,-722.51,0.00017534,2]
[368657010,1751267496782,-570.51,0.00017534,2]
[368657011,1751267496791,-1021.64,0.00017534,2]
[368657012,1751267496801,-490.0,0.00017534,2]
[368657013,1751267496811,-1436.7,0.00017534,2]
[368657014,1751267496820,-490.0,0.00017534,2]
[368657015,1751267496829,-490.0,0.00017534,2]
[368657016,1751267496838,-490.0,0.00017534,2]
[368657017,1751267496848,-1311.53,0.00017534,2]
[368657018,1751267496857,-490.0,0.00017534,2]
[368657019,1751267496866,-490.0,0.00017534,2]
[368657020,1751267496875,-1254.13,0.00017534,2]
[368657021,1751267496884,-1313.75,0.00017534,2]
[368657022,1751267496894,-1211.69,0.00017534,2]
[368657023,1751267496903,-530.23,0.00017534,2]
[368657024,1751267496912,-490.0,0.00017534,2]
[368657025,1751267496921,-570.68,0.00017534,2]
[368657026,1751267496930,-490.0,0.00017534,2]
[368657027,1751267496940,-490.0,0.00017534,2]
[368657028,1751267496949,-2476.26,0.00017534,2]
[368657029,1751267496958,-490.0,0.00017534,2]
[368657030,1751267496967,-1623.94,0.00017534,2]
[368657031,1751267496976,-641.05,0.00017534,2]
[368657032,1751267496985,-605.17,0.00017534,2]
[368657033,1751267496994,-519.73,0.00017534,2]
[368657034,1751267497002,-490.0,0.00017534,2]
[368657035,1751267497011,-490.0,0.00017534,2]
[368657036,1751267497021,-2476.24,0.00017534,2]
[368657037,1751267497030,-1563.29,0.00017534,2]
[368657038,1751267497039,-773.76,0.00017534,2]
[368657039,1751267497048,-2273.14,0.00017534,2]
[368657040,1751267497058,-490.0,0.00017534,2]
[368657041,1751267497067,-1957.52,0.00017534,2]
[368657042,1751267497076,-647.57,0.00017534,2]
[368657043,1751267497085,-490.0,0.00017534,2]
[368657044,1751267497100,-490.0,0.00017534,2]
[368657045,1751267497109,-490.0,0.00017534,2]
[368657046,1751267497119,-1114.66,0.00017534,2]
[368657047,1751267497128,-2239.62,0.00017534,2]
[368657048,1751267497138,-490.0,0.00017534,2]
[368657049,1751267497147,-490.0,0.00017534,2]
[368657050,1751267497156,-1458.3,0.00017534,2]
[368657051,1751267497166,-490.0,0.00017534,2]
[368657052,1751267497175,-490.0,0.00017534,2]
[368657053,1751267497184,-490.0,0.00017534,2]
[368657054,1751267497194,-4010.68,0.00017534,2]
[368657055,1751267497203,-249.58302264,0.00017534,2]
[368657056,1751267497211,-2108.74,0.00017534,2]
[368657057,1751267497220,-490.0,0.00017534,2]
[368657058,1751267497230,-498.04,0.00017534,2]
[368657059,1751267497240,-1267.58,0.00017534,2]
[368657060,1751267497249,-490.0,0.00017534,2]
[368657061,1751267497258,-490.0,0.00017534,2]
[368657062,1751267497267,-490.0,0.00017534,2]
[368657063,1751267497276,-957.35,0.00017534,2]
[368657064,1751267497285,-490.0,0.00017534,2]
[368657065,1751267497294,-670.71,0.00017534,2]
[368657066,1751267497304,-490.0,0.00017534,2]
[368657067,1751267497313,-1688.24,0.00017534,2]
[368657068,1751267497323,-1289.57,0.00017534,2]
[368657069,1751267497332,-490.0,0.00017534,2]
[368657070,1751267497341,-490.0,0.00017534,2]
[368657071,1751267497350,-490.0,0.00017534,2]
[368657072,1751267497359,-824.49,0.00017534,2]
[368657073,1751267497368,-490.0,0.00017534,2]
[368657074,1751267497378,-584.71,0.00017534,2]
[368657075,1751267497388,-1185.23,0.00017534,2]
[368657076,1751267497397,-540.88,0.00017534,2]
[368657077,1751267497407,-490.0,0.00017534,2]
[368657078,1751267497416,-549.64,0.00017534,2]
[368657079,1751267497426,-490.0,0.00017534,2]
[368657080,1751267497436,-490.0,0.00017534,2]
[368657081,1751267497445,-490.0,0.00017534,2]
[368657082,1751267497455,-761.04,0.00017534,2]
[368657083,1751267497464,-490.0,0.00017534,2]
[368657084,1751267497473,-490.0,0.00017534,2]
[368657085,1751267497482,-490.0,0.00017534,2]
[368657086,1751267497492,-758.81,0.00017534,2]
[368657087,1751267497502,-490.0,0.00017534,2]
[368657088,1751267497511,-818.23,0.00017534,2]
[368657089,1751267497521,-748.81,0.00017534,2]
[368657090,1751267497531,-1460.14,0.00017534,2]
[368657091,1751267497541,-490.0,0.00017534,2]
[368657092,1751267497552,-728.93,0.00017534,2]
[368657093,1751267497561,-490.0,0.00017534,2]
[368657094,1751267497570,-1406.09,0.00017534,2]
[368657095,1751267497579,-490.0,0.00017534,2]
[368657096,1751267497589,-490.0,0.00017534,2]
[368657097,1751267497598,-1218.17,0.00017534,2]
[368657098,1751267497607,-1208.24,0.00017534,2]
[368657099,1751267497617,-490.0,0.00017534,2]
[368657100,1751267497626,-565.96135601,0.00017534,2]
[368657101,1751267497635,-490.0,0.00017534,2]
[368657102,1751267497644,-1756.52,0.00017534,2]
[368657103,1751267497654,-490.0,0.00017534,2]
[368657104,1751267497664,-673.72,0.00017534,2]
[368657105,1751267497673,-670.95,0.00017534,2]
[368657106,1751267497682,-1805.35,0.00017534,2]
[368657107,1751267497691,-1311.29,0.00017534,2]
[368657108,1751267497701,-518.88,0.00017534,2]
[368657109,1751267497711,-1813.53,0.00017534,2]
[368657110,1751267497720,-759.03,0.00017534,2]
[368657111,1751267497730,-490.0,0.00017534,2]
[368657112,1751267497739,-1233.48,0.00017534,2]
[368657113,1751267497750,-490.0,0.00017534,2]
[368657114,1751267497760,-490.0,0.00017534,2]
[368657115,1751267497769,-490.0,0.00017534,2]
[368657116,1751267497778,-608.2,0.00017534,2]
[368657117,1751267497787,-3911.58,0.00017534,2]
[368657118,1751267497797,-2453.59,0.00017534,2]
[368657119,1751267497806,-986.67,0.00017534,2]
[368657120,1751267497815,-490.0,0.00017534,2]
[368657121,1751267497824,-1569.86,0.00017534,2]
[368657122,1751267497833,-534.31,0.00017534,2]
[368657123,1751267497842,-792.03,0.00017534,2]
[368657124,1751267497851,-227.32695242,0.00017534,2]
[368657125,1751267497860,-490.0,0.00017534,2]
[368657126,1751267497869,-2907.37,0.00017534,2]
[368657127,1751267497878,-1139.12,0.00017534,2]
[368657128,1751267497887,-490.0,0.00017534,2]
[368657129,1751267497897,-1525.18,0.00017534,2]
[368657130,1751267497906,-1083.01,0.00017534,2]
[368657131,1751267497915,-711.7,0.00017534,2]
[368657132,1751267497924,-490.0,0.00017534,2]
[368657133,1751267497935,-805.1,0.00017534,2]
[368657134,1751267497944,-1219.45,0.00017534,2]
[368657135,1751267497954,-2489.82,0.00017534,2]
[368657136,1751267497963,-490.0,0.00017534,2]
[368657137,1751267497973,-1110.71,0.00017534,2]
[368657138,1751267497982,-2232.05,0.00017534,2]
[368657139,1751267497992,-490.0,0.00017534,2]
[368657140,1751267498001,-905.33,0.00017534,2]
[368657141,1751267498011,-1206.95,0.00017534,2]
[368657142,1751267498021,-490.0,0.00017534,2]
[368657143,1751267498030,-523.23,0.00017534,2]
[368657144,1751267498039,-271.15599439,0.00017534,2]
[368657145,1751267498048,-1032.86,0.00017534,2]
[368657146,1751267498058,-1399.46,0.00017534,2]
[368657147,1751267498067,-940.15,0.00017534,2]
[368657148,1751267498076,-2155.96,0.00017534,2]
[368657149,1751267498086,-798.99,0.00017534,2]
[368657150,1751267498097,-357.08544183,0.00017534,2]
[368657151,1751267498107,-1151.4,0.00017534,2]
[368657152,1751267498116,-1411.63,0.00017534,2]
[368657153,1751267498126,-490.0,0.00017534,2]
[368657154,1751267498135,-490.0,0.00017534,2]
[368657155,1751267498144,-490.0,0.00017534,2]
[368657156,1751267498154,-490.0,0.00017534,2]
[368657157,1751267498163,-3267.39,0.00017534,2]
[368657158,1751267498175,-1104.08,0.00017534,2]
[368657159,1751267498185,-701.32,0.00017534,2]
[368657160,1751267498194,-563.52,0.00017534,2]
[368657161,1751267498203,-491.33,0.00017534,2]
[368657162,1751267498213,-946.01,0.00017534,2]
[368657163,1751267498223,-1143.09,0.00017534,2]
[368657164,1751267498232,-2215.67,0.00017534,2]
[368657165,1751267498241,-2238.17,0.00017534,2]
[368657166,1751267498250,-490.0,0.00017534,2]
[368657167,1751267498262,-490.0,0.00017534,2]
[368657168,1751267498272,-1642.95,0.00017534,2]
[368657169,1751267498281,-3529.66,0.00017534,2]
[368657170,1751267498290,-1031.88,0.00017534,2]
[368657171,1751267498300,-490.0,0.00017534,2]
[368657172,1751267498309,-1010.2,0.00017534,2]
[368657173,1751267498318,-667.33,0.00017534,2]
[368657174,1751267498327,-1712.17,0.00017534,2]
[368657175,1751267498337,-626.08,0.00017534,2]
[368657176,1751267498346,-860.14,0.00017534,2]
[368657177,1751267498355,-348.1858407,0.00017534,2]
[368657178,1751267498364,-3656.02,0.00017534,2]
[368657179,1751267498374,-834.59,0.00017534,2]
[368657180,1751267498383,-490.0,0.00017534,2]
[368657181,1751267498393,-490.0,0.00017534,2]
[368657182,1751267498402,-1030.93,0.00017534,2]
[368657183,1751267498411,-490.0,0.00017534,2]
[368657184,1751267498421,-490.0,0.00017534,2]
[368657185,1751267498430,-559.77,0.00017534,2]
[368657186,1751267498440,-490.0,0.00017534,2]
[368657187,1751267498450,-3042.8,0.00017534,2]
[368657188,1751267498459,-490.0,0.00017534,2]
[368657189,1751267498469,-490.0,0.00017534,2]
[368657190,1751267498478,-710.3,0.00017534,2]
[368657191,1751267498488,-959.3,0.00017534,2]
[368657192,1751267498497,-2433.91,0.00017534,2]
[368657193,1751267498507,-2258.69,0.00017534,2]
[368657194,1751267498517,-490.0,0.00017534,2]
[368657195,1751267498526,-1546.51,0.00017534,2]
[368657196,1751267498536,-499.19,0.00017534,2]
[368657197,1751267498546,-490.0,0.00017534,2]
[368657198,1751267498556,-490.0,0.00017534,2]
[368657199,1751267498565,-683.3,0.00017534,2]
[368657200,1751267498575,-490.0,0.00017534,2]
[368657201,1751267498585,-490.0,0.00017534,2]
[368657202,1751267498595,-1887.4,0.00017534,2]
[368657203,1751267498605,-490.0,0.00017534,2]
[368657204,1751267498615,-1233.56,0.00017534,2]
[368657205,1751267498624,-533.17,0.00017534,2]
[368657206,1751267498634,-490.0,0.00017534,2]
[368657207,1751267498643,-1913.05,0.00017534,2]
[368657208,1751267498653,-934.44,0.00017534,2]
[368657209,1751267498662,-490.0,0.00017534,2]
[368657210,1751267498672,-490.0,0.00017534,2]
[368657211,1751267498681,-752.53,0.00017534,2]
[368657212,1751267498691,-731.26,0.00017534,2]
[368657213,1751267498701,-557.85,0.00017534,2]
[368657214,1751267498710,-1839.15,0.00017534,2]
[368657215,1751267498719,-1061.04,0.00017534,2]
[368657216,1751267498729,-1002.9,0.00017534,2]
[368657217,1751267498738,-490.0,0.00017534,2]
[368657218,1751267498747,-490.0,0.00017534,2]
[368657219,1751267498756,-2501.37,0.00017534,2]
[368657220,1751267498765,-1343.9,0.00017534,2]
[368657221,1751267498775,-609.73,0.00017534,2]
[368657222,1751267498784,-490.0,0.00017534,2]
[368657223,1751267498793,-2212.24,0.00017534,2]
[368657224,1751267498802,-764.05,0.00017534,2]
[368657225,1751267498812,-490.0,0.00017534,2]
[368657226,1751267498822,-490.0,0.00017534,2]
[368657227,1751267498831,-490.0,0.00017534,2]
[368657228,1751267498840,-490.0,0.00017534,2]
[368657229,1751267498849,-2808.96,0.00017534,2]
[368657230,1751267498859,-662.38,0.00017534,2]
[368657231,1751267498868,-671.65,0.00017534,2]
[368657232,1751267498878,-490.0,0.00017534,2]
[368657233,1751267498887,-490.0,0.00017534,2]
[368657234,1751267498896,-490.0,0.00017534,2]
[368657235,1751267498905,-507.67,0.00017534,2]
[368657236,1751267498915,-517.86,0.00017534,2]
[368657237,1751267498924,-490.0,0.00017534,2]
[368657238,1751267498933,-2145.41,0.00017534,2]
[368657239,1751267498943,-490.0,0.00017534,2]
[368657240,1751267498953,-490.0,0.00017534,2]
[368657241,1751267498963,-672.85,0.00017534,2]
[368657242,1751267498973,-2284.2,0.00017534,2]
[368657243,1751267498983,-1011.0,0.00017534,2]
[368657244,1751267498993,-490.0,0.00017534,2]
[368657245,1751267499002,-751.27,0.00017534,2]
[368657246,1751267499012,-490.0,0.00017534,2]
[368657247,1751267499022,-490.0,0.00017534,2]
[368657248,1751267499031,-875.71,0.00017534,2]
[368657249,1751267499041,-1491.73,0.00017534,2]
[368657250,1751267499050,-490.0,0.00017534,2]
[368657251,1751267499059,-543.73,0.00017534,2]
[368657252,1751267499069,-2953.96,0.00017534,2]
[368657253,1751267499078,-772.44,0.00017534,2]
[368657254,1751267499087,-1367.71,0.00017534,2]
[368657255,1751267499099,-714.44,0.00017534,2]
[368657256,1751267499109,-1494.37,0.00017534,2]
[368657257,1751267499118,-490.0,0.00017534,2]
[368657258,1751267499128,-663.84,0.00017534,2]
[368657259,1751267499138,-1079.29,0.00017534,2]
[368657260,1751267499147,-3356.8,0.00017534,2]
[368657261,1751267499157,-490.0,0.00017534,2]
[368657262,1751267499166,-3925.21,0.00017534,2]
[368657263,1751267499176,-510.15,0.00017534,2]
[368657264,1751267499186,-3282.04,0.00017534,2]
[368657265,1751267499197,-1272.02,0.00017534,2]
[368657266,1751267499207,-490.0,0.00017534,2]
[368657267,1751267499216,-567.02885928,0.00017534,2]
[368657268,1751267499227,-490.0,0.00017534,2]
[368657269,1751267499236,-568.77,0.00017534,2]
[368657270,1751267499246,-2464.47,0.00017534,2]
[368657271,1751267499256,-594.88899178,0.00017534,2]
[368657272,1751267499266,-490.0,0.00017534,2]
[368657273,1751267499276,-2472.06,0.00017534,2]
[368657274,1751267499286,-657.57,0.00017534,2]
[368657275,1751267499295,-490.0,0.00017534,2]
[368657276,1751267499305,-1260.99,0.00017534,2]
[368657277,1751267499315,-490.0,0.00017534,2]
[368657278,1751267499325,-490.0,0.00017534,2]
[368657279,1751267499335,-575.9,0.00017534,2]
[368657280,1751267499345,-3486.76,0.00017534,2]
[368657281,1751267499355,-650.41,0.00017534,2]
[368657282,1751267499365,-490.0,0.00017534,2]
[368657283,1751267499375,-526.35845413,0.00017534,2]
[368657284,1751267499384,-569.55,0.00017534,2]
[368657285,1751267499395,-490.0,0.00017534,2]
[368657286,1751267499405,-1177.29,0.00017534,2]
[368657287,1751267499415,-1634.31,0.00017534,2]
[368657288,1751267499425,-3740.54,0.00017534,2]
[368657289,1751267499435,-625.76,0.00017534,2]
[368657290,1751267499446,-490.0,0.00017534,2]
[368657291,1751267499455,-740.73,0.00017534,2]
[368657292,1751267499465,-951.92,0.00017534,2]
[368657293,1751267499475,-519.44,0.00017534,2]
[368657294,1751267499485,-359.08299671,0.00017534,2]
[368657295,1751267499495,-490.0,0.00017534,2]
[368657296,1751267499505,-490.0,0.00017534,2]
[368657297,1751267499514,-1372.31,0.00017534,2]
[368657298,1751267499524,-490.0,0.00017534,2]
[368657299,1751267499534,-490.0,0.00017534,2]
[368657300,1751267499544,-586.15,0.00017534,2]
[368657301,1751267499555,-945.19,0.00017534,2]
[368657302,1751267499565,-490.0,0.00017534,2]